[Event "Titled Tuesday Blitz December 06 Early 2022"]
[White "Begunov, Konstantin"]
[Black "Omariev, Maksim"]
[WhiteFideId "4118510"]
[BlackFideId "4193423"]
[WhiteElo "2141"]
[BlackElo "2440"]
[Result "0-1"]
[Round "07"]
[TimeControl "180+1"]
[Date "2022.12.07"]
[WhiteClock "0:00:16"]
[BlackClock "0:00:17"]

1. d4 {[%clk 0:03:00]}  g6 {[%clk 0:02:43]} 2. c4 {[%clk 0:03:00]}  Bg7 {[%clk 0:02:44]} 3. Nc3 {[%clk 0:03:01]}  d6 {[%clk 0:02:44]} 4. e4 {[%clk 0:03:01]}  Nc6 {[%clk 0:02:44]} 5. Be3 {[%clk 0:03:01]}  e5 {[%clk 0:02:44]} 6. Nge2 {[%clk 0:03:01]}  f5 {[%clk 0:02:42]} 7. exf5 {[%clk 0:03:01]}  Bxf5 {[%clk 0:02:43]} 8. d5 {[%clk 0:02:59]}  Nce7 {[%clk 0:02:41]} 9. Ng3 {[%clk 0:02:59]}  Qd7 {[%clk 0:02:40]} 10. Bd3 {[%clk 0:03:00]}  Nf6 {[%clk 0:02:38]} 11. f3 {[%clk 0:02:58]}  c5 {[%clk 0:02:30]} 12. dxc6 {[%clk 0:02:55]}  bxc6 {[%clk 0:02:29]} 13. O-O {[%clk 0:02:52]}  O-O {[%clk 0:02:27]} 14. Re1 {[%clk 0:02:51]}  Rab8 {[%clk 0:01:55]} 15. b3 {[%clk 0:02:45]}  d5 {[%clk 0:01:45]} 16. cxd5 {[%clk 0:02:23]}  cxd5 {[%clk 0:01:44]} 17. Bc5 {[%clk 0:02:17]}  Qc7 {[%clk 0:01:21]} 18. b4 {[%clk 0:01:47]}  Bc8 {[%clk 0:00:49]} 19. Nb5 {[%clk 0:01:40]}  Qd7 {[%clk 0:00:43]} 20. Rxe5 {[%clk 0:01:36]}  Nc6 {[%clk 0:00:40]} 21. Re2 {[%clk 0:01:22]}  Re8 {[%clk 0:00:41]} 22. Rc1 {[%clk 0:01:13]}  Ba6 {[%clk 0:00:39]} 23. a4 {[%clk 0:01:06]}  Rxe2 {[%clk 0:00:38]} 24. Nxe2 {[%clk 0:01:05]}  Ne5 {[%clk 0:00:35]} 25. Ned4 {[%clk 0:00:51]}  Nxd3 {[%clk 0:00:32]} 26. Qxd3 {[%clk 0:00:51]}  Nh5 {[%clk 0:00:29]} 27. Qb3 {[%clk 0:00:48]}  Nf4 {[%clk 0:00:21]} 28. Rd1 {[%clk 0:00:48]}  Re8 {[%clk 0:00:12]} 29. Nxa7 {[%clk 0:00:39]}  Bc4 {[%clk 0:00:10]} 30. Qb2 {[%clk 0:00:33]}  Ne2+ {[%clk 0:00:08]} 31. Kf2 {[%clk 0:00:29]}  Qxa4 {[%clk 0:00:07]} 32. Re1 {[%clk 0:00:24]}  Kf7 {[%clk 0:00:04]} 33. Nac6 {[%clk 0:00:22]}  Qxc6 {[%clk 0:00:04]} 34. Nxc6 {[%clk 0:00:16]}  Bxb2 {[%clk 0:00:04]} 35. Be3 {[%clk 0:00:05]}  Nc3 {[%clk 0:00:04]} 36. Bd4 {[%clk 0:00:04]}  Rxe1 {[%clk 0:00:03]} 37. Kxe1 {[%clk 0:00:04]}  Na4 {[%clk 0:00:04]} 38. Ba7 {[%clk 0:00:03]}  Bc3+ {[%clk 0:00:03]} 39. Kd1 {[%clk 0:00:03]}  Bb5 {[%clk 0:00:04]} 40. Nd4 {[%clk 0:00:02]}  Bxd4 {[%clk 0:00:03]} 41. Bxd4 {[%clk 0:00:03]}  Bc4 {[%clk 0:00:01]} 42. Kc2 {[%clk 0:00:04]}  Ke6 {[%clk 0:00:02]} 43. Bg7 {[%clk 0:00:04]}  Kd7 {[%clk 0:00:01]} 44. h4 {[%clk 0:00:04]}  Nb6 {[%clk 0:00:01]} 45. Bd4 {[%clk 0:00:05]}  Nc8 {[%clk 0:00:01]} 46. g4 {[%clk 0:00:05]}  Nd6 {[%clk 0:00:02]} 47. Kc3 {[%clk 0:00:05]}  Nb5+ {[%clk 0:00:02]} 48. Kd2 {[%clk 0:00:04]}  Nxd4 {[%clk 0:00:03]} 49. f4 {[%clk 0:00:05]}  Nc6 {[%clk 0:00:03]} 50. h5 {[%clk 0:00:06]}  Nxb4 {[%clk 0:00:04]} 51. hxg6 {[%clk 0:00:06]}  hxg6 {[%clk 0:00:05]} 52. Ke3 {[%clk 0:00:06]}  Ke6 {[%clk 0:00:05]} 53. f5+ {[%clk 0:00:07]}  gxf5 {[%clk 0:00:05]} 54. gxf5+ {[%clk 0:00:08]}  Kxf5 {[%clk 0:00:06]} 55. Kd4 {[%clk 0:00:09]}  Nc6+ {[%clk 0:00:07]} 56. Kc3 {[%clk 0:00:09]}  Ne5 {[%clk 0:00:08]} 57. Kd2 {[%clk 0:00:10]}  Ke6 {[%clk 0:00:09]} 58. Kc3 {[%clk 0:00:11]}  Kd6 {[%clk 0:00:10]} 59. Kd4 {[%clk 0:00:12]}  Nd7 {[%clk 0:00:11]} 60. Kc3 {[%clk 0:00:13]}  Kc5 {[%clk 0:00:11]} 61. Kd2 {[%clk 0:00:13]}  Nb6 {[%clk 0:00:12]} 62. Kc2 {[%clk 0:00:13]}  d4 {[%clk 0:00:13]} 63. Kd2 {[%clk 0:00:14]}  Nd5 {[%clk 0:00:14]} 64. Kc2 {[%clk 0:00:15]}  d3+ {[%clk 0:00:15]} 65. Kd2 {[%clk 0:00:15]}  Kd4 {[%clk 0:00:16]} 66. Kd1 {[%clk 0:00:15]}  Kc3 {[%clk 0:00:16]} 67. Kc1 {[%clk 0:00:15]}  d2+ {[%clk 0:00:16]} 68. Kd1 {[%clk 0:00:16]}  Bb3+ {[%clk 0:00:16]} 69. Ke2 {[%clk 0:00:17]}  d1=Q+ {[%clk 0:00:17]} 70. Kf2 {[%clk 0:00:16]}  Qd2+ {[%clk 0:00:17]} 0-1


[Site "https://www.chess.com"]

[Event "Titled Tuesday Blitz December 06 Early 2022"]
[White "Bortnyk, Olexandr"]
[Black "Holt, Conrad"]
[WhiteFideId "14120828"]
[BlackFideId "2034387"]
[WhiteElo "2723"]
[BlackElo "2592"]
[Result "1-0"]
[Round "07"]
[TimeControl "180+1"]
[Date "2022.12.06"]
[WhiteClock "0:00:05"]
[BlackClock "0:00:07"]

1. e4 {[%clk 0:02:55]}  e6 {[%clk 0:03:00]} 2. d4 {[%clk 0:02:52]}  d5 {[%clk 0:03:00]} 3. Nc3 {[%clk 0:02:52]}  Nf6 {[%clk 0:03:00]} 4. Qd3 {[%clk 0:02:52]}  Bb4 {[%clk 0:02:55]} 5. e5 {[%clk 0:02:46]}  Ne4 {[%clk 0:02:55]} 6. a3 {[%clk 0:02:39]}  Bxc3+ {[%clk 0:02:47]} 7. bxc3 {[%clk 0:02:39]}  c5 {[%clk 0:02:43]} 8. Ne2 {[%clk 0:02:30]}  cxd4 {[%clk 0:02:25]} 9. cxd4 {[%clk 0:02:31]}  Qa5+ {[%clk 0:02:25]} 10. c3 {[%clk 0:02:24]}  b6 {[%clk 0:02:25]} 11. f3 {[%clk 0:02:14]}  Ba6 {[%clk 0:02:25]} 12. Qe3 {[%clk 0:02:14]}  Bxe2 {[%clk 0:02:25]} 13. Bxe2 {[%clk 0:01:33]}  Qxc3+ {[%clk 0:02:24]} 14. Qxc3 {[%clk 0:01:33]}  Nxc3 {[%clk 0:02:25]} 15. Bd3 {[%clk 0:01:32]}  Nd7 {[%clk 0:02:12]} 16. a4 {[%clk 0:01:14]}  Rc8 {[%clk 0:01:08]} 17. Kd2 {[%clk 0:01:10]}  b5 {[%clk 0:01:08]} 18. axb5 {[%clk 0:01:09]}  Nb6 {[%clk 0:01:09]} 19. Rxa7 {[%clk 0:00:52]}  O-O {[%clk 0:01:03]} 20. Ba3 {[%clk 0:00:49]}  Rfe8 {[%clk 0:01:02]} 21. Rc1 {[%clk 0:00:36]}  Nca4 {[%clk 0:01:01]} 22. Rxc8 {[%clk 0:00:20]}  Rxc8 {[%clk 0:01:01]} 23. Bb4 {[%clk 0:00:17]}  h5 {[%clk 0:00:53]} 24. Ba5 {[%clk 0:00:15]}  g6 {[%clk 0:00:40]} 25. Bxb6 {[%clk 0:00:13]}  Nxb6 {[%clk 0:00:40]} 26. Rb7 {[%clk 0:00:14]}  Na4 {[%clk 0:00:37]} 27. b6 {[%clk 0:00:07]}  Kg7 {[%clk 0:00:25]} 28. Bb5 {[%clk 0:00:06]}  Ra8 {[%clk 0:00:18]} 29. Kc2 {[%clk 0:00:05]}  Ra5 {[%clk 0:00:17]} 30. Bxa4 {[%clk 0:00:04]}  Rxa4 {[%clk 0:00:18]} 31. Kb3 {[%clk 0:00:02]}  Rxd4 {[%clk 0:00:17]} 32. Rc7 {[%clk 0:00:02]}  Rd3+ {[%clk 0:00:13]} 33. Rc3 {[%clk 0:00:02]}  Rd1 {[%clk 0:00:14]} 34. Rc2 {[%clk 0:00:03]}  d4 {[%clk 0:00:09]} 35. b7 {[%clk 0:00:03]}  d3 {[%clk 0:00:10]} 36. Rb2 {[%clk 0:00:03]}  h4 {[%clk 0:00:04]} 37. b8=Q {[%clk 0:00:04]}  h3 {[%clk 0:00:05]} 38. gxh3 {[%clk 0:00:04]}  Rf1 {[%clk 0:00:05]} 39. Qd8 {[%clk 0:00:03]}  Rxf3 {[%clk 0:00:06]} 40. Rd2 {[%clk 0:00:03]}  Rf5 {[%clk 0:00:05]} 41. Rxd3 {[%clk 0:00:04]}  Rxe5 {[%clk 0:00:06]} 42. Qc7 {[%clk 0:00:04]}  Rf5 {[%clk 0:00:06]} 43. Rd7 {[%clk 0:00:03]}  Kg8 {[%clk 0:00:06]} 44. Re7 {[%clk 0:00:03]}  Kg7 {[%clk 0:00:07]} 45. Re8 {[%clk 0:00:04]}  Rf3+ {[%clk 0:00:07]} 46. Kc2 {[%clk 0:00:04]}  Rf5 {[%clk 0:00:07]} 47. Qd8 {[%clk 0:00:04]}  Kh6 {[%clk 0:00:08]} 48. Rh8+ {[%clk 0:00:04]}  Kg7 {[%clk 0:00:08]} 49. Rh4 {[%clk 0:00:04]}  g5 {[%clk 0:00:08]} 50. Qh8+ {[%clk 0:00:04]}  Kg6 {[%clk 0:00:07]} 51. Rh6# {[%clk 0:00:05]} 1-0


[Site "https://www.chess.com"]

[Event "Titled Tuesday Blitz December 06 Early 2022"]
[White "Boyer, Mahel"]
[Black "Galchenko, Matvey"]
[WhiteFideId "45102422"]
[BlackFideId "24175480"]
[WhiteElo "2455"]
[BlackElo "2404"]
[Result "1-0"]
[Round "07"]
[TimeControl "180+1"]
[Date "2022.12.06"]
[WhiteClock "0:00:05"]
[BlackClock "0:00:08"]

1. e4 {[%clk 0:02:51]}  e6 {[%clk 0:02:56]} 2. Nf3 {[%clk 0:02:44]}  d5 {[%clk 0:02:52]} 3. exd5 {[%clk 0:02:45]}  exd5 {[%clk 0:02:52]} 4. c4 {[%clk 0:02:46]}  Nf6 {[%clk 0:02:52]} 5. cxd5 {[%clk 0:02:46]}  Nxd5 {[%clk 0:02:53]} 6. Bc4 {[%clk 0:02:46]}  Nb6 {[%clk 0:02:52]} 7. Bb3 {[%clk 0:02:45]}  c5 {[%clk 0:02:48]} 8. d4 {[%clk 0:02:38]}  Nc6 {[%clk 0:02:44]} 9. Qe2+ {[%clk 0:01:53]}  Qe7 {[%clk 0:02:32]} 10. Qxe7+ {[%clk 0:01:42]}  Bxe7 {[%clk 0:02:33]} 11. dxc5 {[%clk 0:01:42]}  Bxc5 {[%clk 0:02:31]} 12. O-O {[%clk 0:01:42]}  O-O {[%clk 0:02:30]} 13. Nc3 {[%clk 0:01:43]}  Bg4 {[%clk 0:02:30]} 14. Ng5 {[%clk 0:01:32]}  Rad8 {[%clk 0:02:17]} 15. Nge4 {[%clk 0:01:28]}  Be7 {[%clk 0:02:12]} 16. h3 {[%clk 0:01:28]}  Bf5 {[%clk 0:02:11]} 17. Be3 {[%clk 0:01:28]}  Nd4 {[%clk 0:02:08]} 18. Rfd1 {[%clk 0:01:21]}  Nxb3 {[%clk 0:01:52]} 19. axb3 {[%clk 0:01:22]}  Rxd1+ {[%clk 0:01:52]} 20. Rxd1 {[%clk 0:01:21]}  Be6 {[%clk 0:01:32]} 21. Bc5 {[%clk 0:01:12]}  Bxc5 {[%clk 0:01:00]} 22. Nxc5 {[%clk 0:01:13]}  Bc8 {[%clk 0:01:01]} 23. Nb5 {[%clk 0:01:09]}  a6 {[%clk 0:00:58]} 24. Nd6 {[%clk 0:01:09]}  Rd8 {[%clk 0:00:58]} 25. Re1 {[%clk 0:01:09]}  Kf8 {[%clk 0:00:48]} 26. Ncxb7 {[%clk 0:00:59]}  Bxb7 {[%clk 0:00:47]} 27. Nxb7 {[%clk 0:01:00]}  Rd2 {[%clk 0:00:44]} 28. Nc5 {[%clk 0:00:46]}  Rxb2 {[%clk 0:00:42]} 29. Ra1 {[%clk 0:00:42]}  Nd5 {[%clk 0:00:34]} 30. Rxa6 {[%clk 0:00:40]}  Nf4 {[%clk 0:00:28]} 31. Ra4 {[%clk 0:00:16]}  g5 {[%clk 0:00:21]} 32. h4 {[%clk 0:00:14]}  h6 {[%clk 0:00:20]} 33. hxg5 {[%clk 0:00:13]}  hxg5 {[%clk 0:00:21]} 34. Ne4 {[%clk 0:00:09]}  Ne2+ {[%clk 0:00:10]} 35. Kh2 {[%clk 0:00:08]}  Rxb3 {[%clk 0:00:10]} 36. Nxg5 {[%clk 0:00:05]}  Rb5 {[%clk 0:00:10]} 37. Nh3 {[%clk 0:00:05]}  Rb2 {[%clk 0:00:07]} 38. Rg4 {[%clk 0:00:03]}  Nc3 {[%clk 0:00:07]} 39. Rf4 {[%clk 0:00:03]}  Nd5 {[%clk 0:00:07]} 40. Rf5 {[%clk 0:00:03]}  Ne7 {[%clk 0:00:08]} 41. Rf3 {[%clk 0:00:04]}  Ng6 {[%clk 0:00:08]} 42. Re3 {[%clk 0:00:04]}  Kg7 {[%clk 0:00:08]} 43. Kg3 {[%clk 0:00:05]}  Rb4 {[%clk 0:00:07]} 44. Rf3 {[%clk 0:00:03]}  Rb1 {[%clk 0:00:07]} 45. Rc3 {[%clk 0:00:03]}  Ne5 {[%clk 0:00:07]} 46. Nf4 {[%clk 0:00:03]}  Kf6 {[%clk 0:00:07]} 47. f3 {[%clk 0:00:03]}  Rb2 {[%clk 0:00:07]} 48. Rc5 {[%clk 0:00:03]}  Nd7 {[%clk 0:00:04]} 49. Ra5 {[%clk 0:00:03]}  Rd2 {[%clk 0:00:04]} 50. Nd5+ {[%clk 0:00:03]}  Kg7 {[%clk 0:00:04]} 51. Ne3 {[%clk 0:00:04]}  Rb2 {[%clk 0:00:03]} 52. Nf5+ {[%clk 0:00:04]}  Kf6 {[%clk 0:00:03]} 53. Nd4 {[%clk 0:00:04]}  Rb1 {[%clk 0:00:04]} 54. Ra6+ {[%clk 0:00:04]}  Kg7 {[%clk 0:00:04]} 55. Nf5+ {[%clk 0:00:04]}  Kh7 {[%clk 0:00:04]} 56. Rh6+ {[%clk 0:00:02]}  Kg8 {[%clk 0:00:04]} 57. Rd6 {[%clk 0:00:03]}  Nc5 {[%clk 0:00:04]} 58. Rd8+ {[%clk 0:00:02]}  Kh7 {[%clk 0:00:04]} 59. Rf8 {[%clk 0:00:03]}  Kg6 {[%clk 0:00:05]} 60. Ne7+ {[%clk 0:00:02]}  Kg7 {[%clk 0:00:06]} 61. Rc8 {[%clk 0:00:02]}  Ne6 {[%clk 0:00:06]} 62. Nf5+ {[%clk 0:00:03]}  Kf6 {[%clk 0:00:07]} 63. Nd6 {[%clk 0:00:04]}  Rb2 {[%clk 0:00:07]} 64. Ne4+ {[%clk 0:00:04]}  Kg7 {[%clk 0:00:08]} 65. Rc4 {[%clk 0:00:04]}  Ra2 {[%clk 0:00:08]} 66. Rb4 {[%clk 0:00:03]}  Rc2 {[%clk 0:00:07]} 67. Rb5 {[%clk 0:00:04]}  Nd4 {[%clk 0:00:07]} 68. Rg5+ {[%clk 0:00:03]}  Kf8 {[%clk 0:00:08]} 69. Rd5 {[%clk 0:00:04]}  Ne2+ {[%clk 0:00:08]} 70. Kg4 {[%clk 0:00:04]}  Ra2 {[%clk 0:00:07]} 71. g3 {[%clk 0:00:04]}  Ra3 {[%clk 0:00:07]} 72. Nf6 {[%clk 0:00:04]}  Kg7 {[%clk 0:00:07]} 73. Nh5+ {[%clk 0:00:04]}  Kf8 {[%clk 0:00:07]} 74. f4 {[%clk 0:00:04]}  Nc3 {[%clk 0:00:07]} 75. Re5 {[%clk 0:00:05]}  Ra1 {[%clk 0:00:06]} 76. Nf6 {[%clk 0:00:05]}  Rg1 {[%clk 0:00:07]} 77. Kf5 {[%clk 0:00:03]}  Rd1 {[%clk 0:00:04]} 78. Re8+ {[%clk 0:00:03]}  Kg7 {[%clk 0:00:04]} 79. Rg8+ {[%clk 0:00:04]}  Kh6 {[%clk 0:00:04]} 80. g4 {[%clk 0:00:05]}  Rd5+ {[%clk 0:00:01]} 81. Nxd5 {[%clk 0:00:05]}  Nxd5 {[%clk 0:00:02]} 82. Rh8+ {[%clk 0:00:04]}  Kg7 {[%clk 0:00:02]} 83. Rh1 {[%clk 0:00:04]}  Ne7+ {[%clk 0:00:03]} 84. Ke4 {[%clk 0:00:05]}  Ng6 {[%clk 0:00:03]} 85. f5 {[%clk 0:00:05]}  Ne7 {[%clk 0:00:04]} 86. g5 {[%clk 0:00:05]}  f6 {[%clk 0:00:04]} 87. g6 {[%clk 0:00:06]}  Ng8 {[%clk 0:00:04]} 88. Rh7+ {[%clk 0:00:05]}  Kf8 {[%clk 0:00:05]} 89. Ra7 {[%clk 0:00:06]}  Ke8 {[%clk 0:00:06]} 90. Kd5 {[%clk 0:00:06]}  Nh6 {[%clk 0:00:05]} 91. Ke6 {[%clk 0:00:07]}  Kf8 {[%clk 0:00:06]} 92. Rf7+ {[%clk 0:00:05]}  Kg8 {[%clk 0:00:06]} 93. Rxf6 {[%clk 0:00:05]}  Ng4 {[%clk 0:00:06]} 94. Rf7 {[%clk 0:00:05]}  Ne3 {[%clk 0:00:07]} 95. Rc7 {[%clk 0:00:04]}  Ng4 {[%clk 0:00:08]} 96. f6 {[%clk 0:00:04]}  Nxf6 {[%clk 0:00:08]} 97. Kxf6 {[%clk 0:00:05]} 1-0


[Site "https://www.chess.com"]

[Event "Titled Tuesday Blitz December 06 Early 2022"]
[White "Buscar, Michael"]
[Black "Borgaonkar Akshay"]
[WhiteFideId "2603616"]
[BlackFideId "25639110"]
[WhiteElo "2377"]
[BlackElo "2509"]
[Result "1/2-1/2"]
[Round "07"]
[TimeControl "180+1"]
[Date "2022.12.07"]
[WhiteClock "0:00:10"]
[BlackClock "0:00:04"]

1. Nf3 {[%clk 0:03:00]}  Nf6 {[%clk 0:02:59]} 2. b3 {[%clk 0:03:00]}  d5 {[%clk 0:02:57]} 3. Bb2 {[%clk 0:03:01]}  Bf5 {[%clk 0:02:57]} 4. e3 {[%clk 0:03:00]}  e6 {[%clk 0:02:57]} 5. c4 {[%clk 0:03:01]}  c6 {[%clk 0:02:57]} 6. cxd5 {[%clk 0:03:00]}  cxd5 {[%clk 0:02:57]} 7. Be2 {[%clk 0:03:01]}  Nc6 {[%clk 0:02:57]} 8. O-O {[%clk 0:03:02]}  Bd6 {[%clk 0:02:58]} 9. d3 {[%clk 0:03:02]}  O-O {[%clk 0:02:58]} 10. a3 {[%clk 0:03:02]}  e5 {[%clk 0:02:57]} 11. Nbd2 {[%clk 0:03:02]}  e4 {[%clk 0:02:57]} 12. dxe4 {[%clk 0:02:57]}  dxe4 {[%clk 0:02:58]} 13. Nd4 {[%clk 0:02:57]}  Nxd4 {[%clk 0:02:56]} 14. Bxd4 {[%clk 0:02:57]}  Qe7 {[%clk 0:02:36]} 15. Qc1 {[%clk 0:02:53]}  Rac8 {[%clk 0:02:35]} 16. Qb2 {[%clk 0:02:54]}  Rfd8 {[%clk 0:02:27]} 17. Rfd1 {[%clk 0:02:50]}  h5 {[%clk 0:02:18]} 18. Nf1 {[%clk 0:02:49]}  Ng4 {[%clk 0:02:00]} 19. Ng3 {[%clk 0:02:39]}  Qg5 {[%clk 0:01:42]} 20. Bxg4 {[%clk 0:02:10]}  Bxg4 {[%clk 0:01:20]} 21. Nxe4 {[%clk 0:02:10]}  Qh4 {[%clk 0:01:17]} 22. Nxd6 {[%clk 0:02:09]}  Rxd6 {[%clk 0:01:15]} 23. Rdc1 {[%clk 0:02:04]}  Rxc1+ {[%clk 0:01:12]} 24. Rxc1 {[%clk 0:02:03]}  Rg6 {[%clk 0:01:13]} 25. Be5 {[%clk 0:01:55]}  Qg5 {[%clk 0:01:00]} 26. Bf4 {[%clk 0:01:53]}  Qf5 {[%clk 0:00:59]} 27. Qe5 {[%clk 0:01:49]}  Qxe5 {[%clk 0:00:55]} 28. Bxe5 {[%clk 0:01:49]}  Bf3 {[%clk 0:00:55]} 29. Bg3 {[%clk 0:01:48]}  Bc6 {[%clk 0:00:55]} 30. h4 {[%clk 0:01:45]}  Re6 {[%clk 0:00:51]} 31. Rd1 {[%clk 0:01:43]}  a6 {[%clk 0:00:49]} 32. Rd8+ {[%clk 0:01:39]}  Kh7 {[%clk 0:00:50]} 33. Rd6 {[%clk 0:01:40]}  Re4 {[%clk 0:00:44]} 34. Kf1 {[%clk 0:01:29]}  Re8 {[%clk 0:00:43]} 35. Rd4 {[%clk 0:01:17]}  Rc8 {[%clk 0:00:42]} 36. a4 {[%clk 0:01:13]}  Re8 {[%clk 0:00:35]} 37. Rd3 {[%clk 0:01:04]}  Re4 {[%clk 0:00:29]} 38. f3 {[%clk 0:00:59]}  Re6 {[%clk 0:00:23]} 39. Kf2 {[%clk 0:00:56]}  Kg6 {[%clk 0:00:23]} 40. e4 {[%clk 0:00:54]}  f6 {[%clk 0:00:22]} 41. Ke3 {[%clk 0:00:50]}  Re8 {[%clk 0:00:20]} 42. Rd6 {[%clk 0:00:46]}  Kf7 {[%clk 0:00:19]} 43. Be1 {[%clk 0:00:45]}  Rc8 {[%clk 0:00:16]} 44. Bb4 {[%clk 0:00:42]}  Be8 {[%clk 0:00:16]} 45. Rd3 {[%clk 0:00:34]}  Rc1 {[%clk 0:00:14]} 46. Kf4 {[%clk 0:00:33]}  Rh1 {[%clk 0:00:13]} 47. g3 {[%clk 0:00:33]}  Rf1 {[%clk 0:00:13]} 48. Rd8 {[%clk 0:00:21]}  Bc6 {[%clk 0:00:12]} 49. Rd3 {[%clk 0:00:16]}  Kg6 {[%clk 0:00:10]} 50. Bf8 {[%clk 0:00:16]}  Rb1 {[%clk 0:00:06]} 51. Bc5 {[%clk 0:00:16]}  Rc1 {[%clk 0:00:06]} 52. Be3 {[%clk 0:00:17]}  Rc2 {[%clk 0:00:06]} 53. Bd2 {[%clk 0:00:16]}  Rb2 {[%clk 0:00:05]} 54. Ke3 {[%clk 0:00:16]}  Rb1 {[%clk 0:00:05]} 55. Kf4 {[%clk 0:00:15]}  Rf1 {[%clk 0:00:05]} 56. Bb4 {[%clk 0:00:15]}  Rc1 {[%clk 0:00:04]} 57. Re3 {[%clk 0:00:15]}  Rc2 {[%clk 0:00:04]} 58. Bd6 {[%clk 0:00:14]}  Rd2 {[%clk 0:00:04]} 59. e5 {[%clk 0:00:14]}  Rd4+ {[%clk 0:00:03]} 60. Re4 {[%clk 0:00:12]}  Bxe4 {[%clk 0:00:03]} 61. fxe4 {[%clk 0:00:13]}  fxe5+ {[%clk 0:00:04]} 62. Kxe5 {[%clk 0:00:11]}  Rd3 {[%clk 0:00:04]} 63. b4 {[%clk 0:00:11]}  Rxg3 {[%clk 0:00:04]} 64. Be7 {[%clk 0:00:11]}  Rg1 {[%clk 0:00:03]} 65. Kd6 {[%clk 0:00:10]}  Re1 {[%clk 0:00:04]} 66. e5 {[%clk 0:00:10]}  Kf5 {[%clk 0:00:04]} 67. Bg5 {[%clk 0:00:08]}  Rxe5 {[%clk 0:00:05]} 68. Kc7 {[%clk 0:00:08]}  Re4 {[%clk 0:00:05]} 69. b5 {[%clk 0:00:08]}  Rxa4 {[%clk 0:00:04]} 70. b6 {[%clk 0:00:09]}  Rb4 {[%clk 0:00:03]} 71. Kxb7 {[%clk 0:00:09]}  a5 {[%clk 0:00:04]} 72. Ka7 {[%clk 0:00:08]}  a4 {[%clk 0:00:04]} 73. Bc1 {[%clk 0:00:08]}  Rc4 {[%clk 0:00:03]} 74. b7 {[%clk 0:00:08]}  Rc7 {[%clk 0:00:02]} 75. Ka8 {[%clk 0:00:09]}  Rxb7 {[%clk 0:00:03]} 76. Kxb7 {[%clk 0:00:09]}  Kg4 {[%clk 0:00:04]} 77. Bb2 {[%clk 0:00:08]}  Kxh4 {[%clk 0:00:04]} 78. Bxg7 {[%clk 0:00:07]}  Kg3 {[%clk 0:00:04]} 79. Ka6 {[%clk 0:00:08]}  h4 {[%clk 0:00:03]} 80. Ka5 {[%clk 0:00:09]}  h3 {[%clk 0:00:04]} 81. Kxa4 {[%clk 0:00:09]}  h2 {[%clk 0:00:04]} 82. Be5+ {[%clk 0:00:09]}  Kg2 {[%clk 0:00:04]} 83. Bxh2 {[%clk 0:00:10]} 1/2-1/2


[Site "https://www.chess.com"]

[Event "Titled Tuesday Blitz December 06 Early 2022"]
[White "Clawitter, Craig"]
[Black "Zaksaite, Salomeja"]
[WhiteFideId "2023105"]
[BlackFideId "12801496"]
[WhiteElo "2178"]
[BlackElo "2079"]
[Result "0-1"]
[Round "07"]
[TimeControl "180+1"]
[Date "2022.12.07"]
[WhiteClock "0:00:01"]
[BlackClock "0:01:03"]

1. e4 {[%clk 0:01:02]}  c5 {[%clk 0:02:57]} 2. Nf3 {[%clk 0:01:02]}  Nc6 {[%clk 0:02:55]} 3. d4 {[%clk 0:01:02]}  cxd4 {[%clk 0:02:54]} 4. Nxd4 {[%clk 0:01:03]}  Nf6 {[%clk 0:02:53]} 5. Nc3 {[%clk 0:01:04]}  e5 {[%clk 0:02:53]} 6. Ndb5 {[%clk 0:01:04]}  d6 {[%clk 0:02:54]} 7. Bg5 {[%clk 0:01:05]}  a6 {[%clk 0:02:54]} 8. Na3 {[%clk 0:01:06]}  b5 {[%clk 0:02:53]} 9. Bxf6 {[%clk 0:01:06]}  gxf6 {[%clk 0:02:53]} 10. Nd5 {[%clk 0:01:07]}  Bg7 {[%clk 0:02:53]} 11. Bd3 {[%clk 0:01:08]}  Ne7 {[%clk 0:02:51]} 12. Nxe7 {[%clk 0:01:08]}  Qxe7 {[%clk 0:02:51]} 13. O-O {[%clk 0:01:09]}  f5 {[%clk 0:02:50]} 14. exf5 {[%clk 0:01:07]}  d5 {[%clk 0:02:45]} 15. c3 {[%clk 0:01:00]}  e4 {[%clk 0:02:43]} 16. Re1 {[%clk 0:00:59]}  Bxf5 {[%clk 0:02:41]} 17. Nc2 {[%clk 0:00:56]}  O-O {[%clk 0:02:36]} 18. a4 {[%clk 0:00:55]}  bxa4 {[%clk 0:02:31]} 19. Bf1 {[%clk 0:00:43]}  Rab8 {[%clk 0:02:10]} 20. Nb4 {[%clk 0:00:30]}  Rxb4 {[%clk 0:01:48]} 21. cxb4 {[%clk 0:00:30]}  d4 {[%clk 0:01:44]} 22. Rxa4 {[%clk 0:00:24]}  Qb7 {[%clk 0:01:44]} 23. Bxa6 {[%clk 0:00:21]}  Qb6 {[%clk 0:01:39]} 24. Bf1 {[%clk 0:00:13]}  d3 {[%clk 0:01:38]} 25. b5 {[%clk 0:00:12]}  Re8 {[%clk 0:01:21]} 26. Qd2 {[%clk 0:00:09]}  Qxb5 {[%clk 0:01:17]} 27. Rb4 {[%clk 0:00:09]}  Qa5 {[%clk 0:01:13]} 28. Bxd3 {[%clk 0:00:09]}  Rd8 {[%clk 0:01:09]} 29. Rb8 {[%clk 0:00:02]}  Qxd2 {[%clk 0:01:07]} 30. Rxd8+ {[%clk 0:00:02]}  Bf8 {[%clk 0:01:07]} 31. Ra1 {[%clk 0:00:01]}  exd3 {[%clk 0:01:05]} 32. h3 {[%clk 0:00:01]}  Qxb2 {[%clk 0:01:04]} 33. Raa8 {[%clk 0:00:01]}  Qb4 {[%clk 0:01:03]} 0-1


[Site "https://www.chess.com"]